fUST/lending_fUST_20250605
["ID","MTS","AMOUNT","RATE_DAILY","PERIOD"]
[364496441,1749121839561,-1000.0,0.00018921,2]
[364496444,1749121839570,-904.08757754,0.00019107,2]
[364496447,1749121839580,-622.38,0.00019177,2]
[364496449,1749121839591,-151.0,0.00019178,2]
[364496451,1749121839600,-151.0,0.00019178,2]
[364496453,1749121839610,-151.0,0.00019178,2]
[364496455,1749121839620,-151.0,0.00019178,2]
[364496457,1749121839630,-151.0,0.00019178,2]
[364496459,1749121839639,-151.0,0.00019178,2]
[364496461,1749121839649,-350.0,0.00019178,2]
[364496464,1749121839658,-344.78759209,0.00019178,2]
[364496467,1749121839668,-440.0,0.00019178,2]
[364496469,1749121839677,-440.0,0.00019178,2]
[364496471,1749121839686,-500.0,0.00019178,2]
[364496473,1749121839695,-500.0,0.00019178,2]
[364496475,1749121839705,-500.0,0.00019178,2]
[364496477,1749121839714,-500.0,0.00019178,2]
[364496479,1749121839724,-500.0,0.00019178,2]
[364496481,1749121839738,-500.0,0.00019178,2]
[364496483,1749121839747,-311.18458311,0.00019178,2]
[364496485,1749121839757,-500.0,0.00019178,2]
[364496486,1749121839766,-500.0,0.00019178,2]
[364496487,1749121839779,-500.0,0.00019178,2]
[364496488,1749121839788,-500.0,0.00019178,2]
[364496489,1749121839798,-500.0,0.00019178,2]
[364496492,1749121839810,-440.0,0.00019178,2]
[364496493,1749121839820,-440.0,0.00019178,2]
[364496495,1749121839829,-440.0,0.00019178,2]
[364496497,1749121839839,-440.0,0.00019178,2]
[364496500,1749121839850,-440.0,0.00019178,2]
[364496501,1749121839859,-440.0,0.00019178,2]
[364496504,1749121839869,-742.02,0.00019178,2]
[364496505,1749121839879,-440.0,0.00019178,2]
[364496507,1749121839888,-899.61,0.00019178,2]
[364496509,1749121839897,-1090.81,0.00019178,2]
[364496511,1749121839906,-554.81,0.00019178,2]
[364496513,1749121839917,-440.0,0.00019178,2]
[364496515,1749121839926,-440.0,0.00019178,2]
[364496517,1749121839935,-1310.76,0.00019178,2]
[364496519,1749121839945,-440.0,0.00019178,2]
[364496521,1749121839954,-477.89,0.00019178,2]
[364496523,1749121839963,-440.0,0.00019178,2]
[364496525,1749121839973,-440.0,0.00019178,2]
[364496527,1749121839983,-440.0,0.00019178,2]
[364496529,1749121839993,-440.0,0.00019178,2]
[364496531,1749121840003,-1311.45,0.00019178,2]
[364496533,1749121840012,-440.0,0.00019178,2]
[364496535,1749121840022,-1197.64,0.00019178,2]
[364496537,1749121840031,-492.74,0.00019178,2]
[364496539,1749121840041,-516.22,0.00019178,2]
[364496541,1749121840051,-440.0,0.00019178,2]
[364496543,1749121840060,-440.0,0.00019178,2]
[364496545,1749121840070,-453.27,0.00019178,2]
[364496547,1749121840080,-440.0,0.00019178,2]
[364496549,1749121840089,-440.0,0.00019178,2]
[364496551,1749121840099,-912.33,0.00019178,2]
[364496553,1749121840108,-451.02,0.00019178,2]
[364496555,1749121840117,-440.0,0.00019178,2]
[364496557,1749121840128,-440.0,0.00019178,2]
[364496559,1749121840137,-440.0,0.00019178,2]
[364496561,1749121840146,-702.57,0.00019178,2]
[364496563,1749121840156,-440.0,0.00019178,2]
[364496565,1749121840165,-440.0,0.00019178,2]
[364496567,1749121840174,-440.0,0.00019178,2]
[364496569,1749121840184,-958.15,0.00019178,2]
[364496571,1749121840194,-440.0,0.00019178,2]
[364496573,1749121840203,-440.0,0.00019178,2]
[364496575,1749121840212,-440.0,0.00019178,2]
[364496577,1749121840221,-198.241379,0.00019178,2]
[364496579,1749121840230,-151.0,0.00019329,2]
[364496581,1749121840240,-151.0,0.00019329,2]
[364496583,1749121840250,-441.93286393,0.0001933,2]
[364496585,1749121840259,-904.08757754,0.00019348,2]
[364496587,1749121840268,-622.38,0.00019423,2]
[364496589,1749121840277,-423.7637613,0.00019423,2]
[364496591,1749121840287,-842.5625,0.00019423,2]
[364496594,1749121840296,-229.48950782,0.00019423,2]
[364496597,1749121840306,-160.0,0.00019423,2]
[364496599,1749121840316,-160.0,0.00019423,2]
[364496601,1749121840325,-160.0,0.00019423,2]
[364496603,1749121840334,-160.0,0.00019423,2]
[364496604,1749121840343,-160.0,0.00019423,2]
[364496605,1749121840353,-12675.11581177,0.00019423,2]
[364496606,1749121840363,-622.38,0.00019451,2]
[364496607,1749121840373,-151.0,0.00019452,2]
[364496608,1749121840384,-151.0,0.00019452,2]
[364496609,1749121840394,-440.0,0.00019452,2]
[364496610,1749121840404,-440.0,0.00019452,2]
[364496611,1749121840414,-440.0,0.00019452,2]
[364496612,1749121840425,-440.0,0.00019452,2]
[364496613,1749121840435,-440.0,0.00019452,2]
[364496614,1749121840445,-440.0,0.00019452,2]
[364496615,1749121840455,-440.0,0.00019452,2]
[364496616,1749121840465,-742.02,0.00019452,2]
[364496617,1749121840475,-440.0,0.00019452,2]
[364496618,1749121840484,-899.61,0.00019452,2]
[364496619,1749121840494,-1090.81,0.00019452,2]
[364496620,1749121840504,-554.81,0.00019452,2]
[364496621,1749121840514,-440.0,0.00019452,2]
[364496622,1749121840524,-440.0,0.00019452,2]
[364496623,1749121840534,-1310.76,0.00019452,2]
[364496624,1749121840550,-440.0,0.00019452,2]
[364496628,1749121840664,-477.89,0.00019452,2]
[364496630,1749121840674,-440.0,0.00019452,2]
[364496632,1749121840684,-440.0,0.00019452,2]
[364496634,1749121840693,-440.0,0.00019452,2]
[364496636,1749121840703,-440.0,0.00019452,2]
[364496638,1749121840713,-1311.45,0.00019452,2]
[364496640,1749121840723,-440.0,0.00019452,2]
[364496642,1749121840737,-1197.64,0.00019452,2]
[364496644,1749121840747,-492.74,0.00019452,2]
[364496646,1749121840757,-516.22,0.00019452,2]
[364496648,1749121840767,-440.0,0.00019452,2]
[364496650,1749121840778,-440.0,0.00019452,2]
[364496652,1749121840788,-453.27,0.00019452,2]
[364496654,1749121840798,-430.0,0.00019452,2]
[364496656,1749121840808,-440.0,0.00019452,2]
[364496658,1749121840819,-912.33,0.00019452,2]
[364496661,1749121840830,-451.02,0.00019452,2]
[364496663,1749121840840,-440.0,0.00019452,2]
[364496665,1749121840850,-440.0,0.00019452,2]
[364496667,1749121840860,-440.0,0.00019452,2]
[364496669,1749121840869,-702.57,0.00019452,2]
[364496671,1749121840879,-440.0,0.00019452,2]
[364496673,1749121840889,-440.0,0.00019452,2]
[364496675,1749121840898,-440.0,0.00019452,2]
[364496677,1749121840908,-958.15,0.00019452,2]
[364496679,1749121840919,-440.0,0.00019452,2]
[364496681,1749121840930,-440.0,0.00019452,2]
[364496683,1749121840940,-440.0,0.00019452,2]
[364496685,1749121840949,-183.35058372,0.00019468,2]
[364496687,1749121840959,-462.0,0.00019491,2]
[364496689,1749121840968,-207.4,0.00019514,2]
[364496691,1749121840977,-500.0,0.00019514,2]
[364496693,1749121840986,-616.20654031,0.00019514,2]
[364496694,1749121840996,-904.08757754,0.0001959,2]
[364496696,1749121841005,-560.0,0.0001969,2]
[364496698,1749121841015,-622.38,0.00019725,2]
[364496700,1749121841024,-151.0,0.00019726,2]
[364496702,1749121841034,-151.0,0.00019726,2]
[364496704,1749121841044,-440.0,0.00019726,2]
[364496706,1749121841054,-387.96,0.00019726,2]
[364496708,1749121841063,-234.9,0.00019726,2]
[364496710,1749121841072,-440.0,0.00019726,2]
[364496712,1749121841081,-440.0,0.00019726,2]
[364496714,1749121841091,-440.0,0.00019726,2]
[364496716,1749121841100,-440.0,0.00019726,2]
[364496718,1749121841110,-742.02,0.00019726,2]
[364496720,1749121841119,-899.61,0.00019726,2]
[364496722,1749121841129,-1090.81,0.00019726,2]
[364496724,1749121841138,-554.81,0.00019726,2]
[364496726,1749121841148,-440.0,0.00019726,2]
[364496728,1749121841157,-440.0,0.00019726,2]
[364496730,1749121841166,-1310.76,0.00019726,2]
[364496732,1749121841176,-440.0,0.00019726,2]
[364496734,1749121841185,-477.89,0.00019726,2]
[364496736,1749121841194,-440.0,0.00019726,2]
[364496738,1749121841203,-440.0,0.00019726,2]
[364496740,1749121841213,-491.04,0.00019726,2]
[364496742,1749121841222,-440.0,0.00019726,2]
[364496744,1749121841232,-1311.45,0.00019726,2]
[364496746,1749121841242,-440.0,0.00019726,2]
[364496748,1749121841251,-1197.64,0.00019726,2]
[364496750,1749121841262,-492.74,0.00019726,2]
[364496752,1749121841272,-516.22,0.00019726,2]
[364496754,1749121841282,-440.0,0.00019726,2]
[364496756,1749121841291,-440.0,0.00019726,2]
[364496758,1749121841302,-453.27,0.00019726,2]
[364496760,1749121841311,-440.0,0.00019726,2]
[364496762,1749121841320,-912.33,0.00019726,2]
[364496764,1749121841329,-451.02,0.00019726,2]
[364496766,1749121841338,-525.76897121,0.00019726,2]
[364496768,1749121841347,-440.0,0.00019726,2]
[364496769,1749121841356,-440.0,0.00019726,2]
[364496772,1749121841366,-702.57,0.00019726,2]
[364496773,1749121841375,-440.0,0.00019726,2]
[364496775,1749121841385,-440.0,0.00019726,2]
[364496777,1749121841394,-440.0,0.00019726,2]
[364496779,1749121841403,-958.15,0.00019726,2]
[364496781,1749121841413,-440.0,0.00019726,2]
[364496783,1749121841422,-290.47,0.00019726,2]
[364496785,1749121841431,-904.08757754,0.00019831,2]
[364496787,1749121841441,-697.6583797,0.00019871,2]
[364496789,1749121841450,-339.132,0.00019882,2]
[364496791,1749121841459,-511.15,0.0002,2]
[364496793,1749121841469,-556.09604359,0.0002,2]
[364496795,1749121841479,-440.0,0.0002,2]
[364496797,1749121841488,-304.06,0.0002,2]
[364496799,1749121841498,-440.0,0.0002,2]
[364496801,1749121841507,-742.02,0.0002,2]
[364496803,1749121841517,-899.61,0.0002,2]
[364496805,1749121841527,-1090.81,0.0002,2]
[364496807,1749121841536,-554.81,0.0002,2]
[364496809,1749121841546,-440.0,0.0002,2]
[364496811,1749121841555,-440.0,0.0002,2]
[364496813,1749121841565,-1310.76,0.0002,2]
[364496815,1749121841575,-440.0,0.0002,2]
[364496817,1749121841585,-477.89,0.0002,2]
[364496819,1749121841594,-440.0,0.0002,2]
[364496821,1749121841603,-440.0,0.0002,2]
[364496823,1749121841613,-440.0,0.0002,2]
[364496825,1749121841622,-1311.45,0.0002,2]
[364496827,1749121841631,-440.0,0.0002,2]
[364496829,1749121841641,-1197.64,0.0002,2]
[364496831,1749121841650,-492.74,0.0002,2]
[364496833,1749121841660,-516.22,0.0002,2]
[364496835,1749121841670,-440.0,0.0002,2]
[364496837,1749121841680,-440.0,0.0002,2]
[364496839,1749121841689,-453.27,0.0002,2]
[364496841,1749121841698,-440.0,0.0002,2]
[364496843,1749121841707,-912.33,0.0002,2]
[364496845,1749121841716,-451.02,0.0002,2]
[364496847,1749121841729,-440.0,0.0002,2]
[364496849,1749121841739,-440.0,0.0002,2]
[364496851,1749121841748,-702.57,0.0002,2]
[364496852,1749121841757,-440.0,0.0002,2]
[364496854,1749121841767,-440.0,0.0002,2]
[364496856,1749121841777,-480.4,0.0002,2]
[364496858,1749121841786,-958.15,0.0002,2]
[364496860,1749121841795,-440.0,0.0002,2]
[364496862,1749121841805,-904.08757754,0.00020072,2]
[364496864,1749121841814,-4666.1,0.00020111,2]
[364496866,1749121841823,-246.178392,0.00020187,2]
[364496868,1749121841832,-622.38,0.00020272,2]
[364496870,1749121841841,-440.0,0.00020273,2]
[364496872,1749121841850,-440.0,0.00020273,2]
[364496874,1749121841859,-742.02,0.00020273,2]
[364496876,1749121841869,-899.61,0.00020273,2]
[364496878,1749121841878,-1090.81,0.00020273,2]
[364496880,1749121841887,-554.81,0.00020273,2]
[364496882,1749121841896,-440.0,0.00020273,2]
[364496884,1749121841906,-440.0,0.00020273,2]
[364496886,1749121841915,-1310.76,0.00020273,2]
[364496888,1749121841924,-440.0,0.00020273,2]
[364496889,1749121841933,-477.89,0.00020273,2]
[364496891,1749121841942,-440.0,0.00020273,2]
[364496893,1749121841951,-440.0,0.00020273,2]
[364496895,1749121841961,-440.0,0.00020273,2]
[364496897,1749121841970,-1311.45,0.00020273,2]
[364496899,1749121841980,-440.0,0.00020273,2]
[364496901,1749121841989,-1197.64,0.00020273,2]
[364496904,1749121841999,-492.74,0.00020273,2]
[364496906,1749121842011,-516.22,0.00020273,2]
[364496908,1749121842021,-440.0,0.00020273,2]
[364496909,1749121842031,-440.0,0.00020273,2]
[364496911,1749121842041,-453.27,0.00020273,2]
[364496914,1749121842052,-440.0,0.00020273,2]
[364496915,1749121842065,-912.33,0.00020273,2]
[364496917,1749121842074,-451.02,0.00020273,2]
[364496919,1749121842084,-440.0,0.00020273,2]
[364496921,1749121842093,-440.0,0.00020273,2]
[364496923,1749121842103,-702.57,0.00020273,2]
[364496925,1749121842111,-440.0,0.00020273,2]
[364496927,1749121842120,-440.0,0.00020273,2]
[364496929,1749121842130,-958.15,0.00020273,2]
[364496931,1749121842139,-583.50764227,0.00020273,2]
[364496933,1749121842149,-904.08757754,0.00020314,3]
[364496935,1749121842159,-587.0,0.00020489,2]
[364496937,1749121842168,-622.38,0.00020546,2]
[364496939,1749121842178,-440.0,0.00020547,2]
[364496941,1749121842187,-556.66,0.00020547,2]
[364496943,1749121842197,-500.0,0.00020547,2]
[364496945,1749121842206,-440.0,0.00020547,2]
[364496947,1749121842216,-742.02,0.00020547,2]
[364496949,1749121842225,-899.61,0.00020547,2]
[364496951,1749121842234,-1090.81,0.00020547,2]
[364496953,1749121842244,-554.81,0.00020547,2]
[364496955,1749121842254,-440.0,0.00020547,2]
[364496957,1749121842263,-440.0,0.00020547,2]
[364496958,1749121842272,-1310.76,0.00020547,2]
[364496959,1749121842282,-440.0,0.00020547,2]
[364496960,1749121842291,-477.89,0.00020547,2]
[364496961,1749121842302,-440.0,0.00020547,2]
[364496962,1749121842311,-440.0,0.00020547,2]
[364496963,1749121842321,-554.76,0.00020547,2]
[364496964,1749121842330,-1311.45,0.00020547,2]
[364496965,1749121842340,-440.0,0.00020547,2]
[364496966,1749121842350,-1197.64,0.00020547,2]
[364496967,1749121842360,-492.74,0.00020547,2]
[364496969,1749121842369,-326.06474882,0.00020547,2]
[364496971,1749121842386,-190.15525118,0.00020547,2]
[364496973,1749121842396,-440.0,0.00020547,2]
[364496975,1749121842405,-440.0,0.00020547,2]
[364496977,1749121842415,-80.55472634,0.00020547,2]
[364496978,1749121842427,-322.17293912,0.00020547,2]
[364496988,1749121842520,-440.0,0.00018356,2]
[364496990,1749121842530,-440.0,0.00019726,2]
[364496992,1749121842540,-440.0,0.0002,2]
[364496994,1749121842550,-449.86,0.00020273,2]
[364496996,1749121842562,-50.54233454,0.00020547,2]
[364496998,1749121842571,-372.50046884,0.00020547,2]
[364497000,1749121842581,-912.33,0.00020547,2]
[364497002,1749121842590,-451.02,0.00020547,2]
[364497004,1749121842599,-55.51619912,0.00020547,2]
[364497006,1749121842611,-384.48380088,0.00020547,2]
[364497008,1749121842620,-440.0,0.00020547,2]
[364497010,1749121842630,-702.57,0.00020547,2]
[364497012,1749121842639,-440.0,0.00020547,2]
[364497014,1749121842648,-440.0,0.00020547,2]
[364497016,1749121842657,-958.15,0.00020547,2]
[364497018,1749121842667,-904.08757754,0.00020555,3]
[364497020,1749121842676,-1213.09202746,0.000206,2]
[364497022,1749121842687,-2304.55797254,0.000206,2]
[364497024,1749121842696,-2159.98,0.000206,2]
[364497026,1749121842706,-19998.07,0.000206,2]
[364497028,1749121842715,-904.08757754,0.00020797,4]
[364497030,1749121842726,-196.06,0.00020821,2]
[364497032,1749121842736,-742.02,0.00020821,2]
[364497034,1749121842745,-899.61,0.00020821,2]
[364497035,1749121842755,-1090.81,0.00020821,2]
[364497037,1749121842764,-554.81,0.00020821,2]
[364497039,1749121842774,-440.0,0.00020821,2]
[364497041,1749121842783,-440.0,0.00020821,2]
[364497043,1749121842792,-1310.76,0.00020821,2]
[364497045,1749121842802,-440.0,0.00020821,2]
[364497047,1749121842812,-477.89,0.00020821,2]
[364497049,1749121842822,-440.0,0.00020821,2]
[364497051,1749121842831,-440.0,0.00020821,2]
[364497053,1749121842840,-1311.45,0.00020821,2]
[364497055,1749121842849,-440.0,0.00020821,2]
[364497057,1749121842859,-1197.64,0.00020821,2]
[364497059,1749121842868,-492.74,0.00020821,2]
[364497061,1749121842877,-516.22,0.00020821,2]
[364497063,1749121842886,-440.0,0.00020821,2]
[364497065,1749121842896,-153.69,0.00020821,2]
[364497067,1749121842905,-453.27,0.00020821,2]
[364497069,1749121842914,-912.33,0.00020821,2]
[364497071,1749121842924,-451.02,0.00020821,2]
[364497073,1749121842933,-440.0,0.00020821,2]
[364497075,1749121842942,-440.0,0.00020821,2]
[364497077,1749121842951,-702.57,0.00020821,2]
[364497079,1749121842960,-440.0,0.00020821,2]
[364497081,1749121842969,-440.0,0.00020821,2]
[364497083,1749121842978,-958.15,0.00020821,2]
[364497085,1749121842987,-215.0738,0.00020883,2]
[364497086,1749121842996,-405.0,0.00021013,2]
[364497088,1749121843005,-904.08757754,0.00021038,4]
[364497090,1749121843014,-622.38,0.00021094,2]
[364497092,1749121843023,-217.96,0.00021095,3]
[364497094,1749121843032,-742.02,0.00021095,2]
[364497096,1749121843041,-899.61,0.00021095,2]
[364497098,1749121843051,-1090.81,0.00021095,2]
[364497100,1749121843060,-554.81,0.00021095,2]
[364497102,1749121843069,-440.0,0.00021095,2]
[364497104,1749121843079,-440.0,0.00021095,2]
[364497106,1749121843088,-1310.76,0.00021095,2]
[364497108,1749121843097,-440.0,0.00021095,2]
[364497110,1749121843106,-477.89,0.00021095,2]
[364497112,1749121843115,-440.0,0.00021095,2]
[364497114,1749121843124,-440.0,0.00021095,2]
[364497126,1749121843229,-1311.45,0.00021095,2]
[364497128,1749121843238,-373.75,0.00021095,2]
[364497130,1749121843247,-1197.64,0.00021095,2]
[364497132,1749121843257,-492.74,0.00021095,2]
[364497134,1749121843266,-516.22,0.00021095,2]
[364497136,1749121843276,-440.0,0.00021095,2]
[364497137,1749121843285,-453.27,0.00021095,2]
[364497139,1749121843295,-912.33,0.00021095,2]
[364497141,1749121843305,-451.02,0.00021095,2]
[364497143,1749121843315,-361.72,0.00021095,2]
[364497145,1749121843324,-440.0,0.00021095,2]
[364497147,1749121843333,-702.57,0.00021095,2]
[364497149,1749121843342,-440.0,0.00021095,2]
[364497151,1749121843351,-440.0,0.00021095,2]
[364497153,1749121843360,-958.15,0.00021095,2]
[364497155,1749121843370,-800.0,0.00021164,2]
[364497157,1749121843379,-904.08757754,0.00021279,5]
[364497159,1749121843389,-742.02,0.00021369,2]
[364497161,1749121843398,-899.61,0.00021369,2]
[364497163,1749121843408,-1090.81,0.00021369,2]
[364497165,1749121843417,-554.81,0.00021369,2]
[364497167,1749121843426,-589.8,0.00021369,2]
[364497169,1749121843435,-440.0,0.00021369,2]
[364497171,1749121843445,-1310.76,0.00021369,2]
[364497174,1749121843455,-440.0,0.00021369,2]
[364497175,1749121843465,-477.89,0.00021369,2]
[364497178,1749121843475,-440.0,0.00021369,2]
[364497179,1749121843484,-440.0,0.00021369,2]
[364497181,1749121843494,-1311.45,0.00021369,2]
[364497183,1749121843503,-1197.64,0.00021369,2]
[364497185,1749121843512,-492.74,0.00021369,2]
[364497187,1749121843521,-516.22,0.00021369,2]
[364497189,1749121843531,-440.0,0.00021369,2]
[364497191,1749121843540,-453.27,0.00021369,2]
[364497193,1749121843550,-912.33,0.00021369,2]
[364497195,1749121843560,-451.02,0.00021369,2]
[364497197,1749121843570,-440.0,0.00021369,2]
[364497199,1749121843578,-702.57,0.00021369,2]
[364497201,1749121843588,-440.0,0.00021369,2]
[364497203,1749121843597,-288.3212153,0.00021369,2]
[364497205,1749121843608,-958.15,0.00021369,2]
[364497207,1749121843618,-160.0,0.0002139,3]
[364497210,1749121843627,-622.38,0.00021399,2]
[364497212,1749121843636,-154.88,0.00021405,2]
[364497213,1749121843646,-904.08757754,0.00021521,5]
[364497215,1749121843657,-500.0,0.00021527,2]
[364497218,1749121843667,-500.0,0.00021527,2]
[364497220,1749121843677,-500.0,0.00021527,2]
[364497222,1749121843687,-742.02,0.00021643,2]
[364497224,1749121843696,-899.61,0.00021643,2]
[364497225,1749121843706,-1090.81,0.00021643,2]
[364497227,1749121843715,-554.81,0.00021643,2]
[364497229,1749121843725,-440.0,0.00021643,2]
[364497231,1749121843737,-1310.76,0.00021643,2]
[364497234,1749121843748,-440.0,0.00021643,2]
[364497235,1749121843757,-477.89,0.00021643,2]
[364497237,1749121843766,-440.0,0.00021643,2]
[364497239,1749121843775,-440.0,0.00021643,2]
[364497241,1749121843785,-1311.45,0.00021643,2]
[364497243,1749121843795,-1197.64,0.00021643,2]
[364497245,1749121843804,-492.74,0.00021643,2]
[364497247,1749121843815,-440.0,0.00021643,2]
[364497249,1749121843824,-516.22,0.00021643,2]
[364497251,1749121843833,-453.27,0.00021643,2]
[364497253,1749121843842,-912.33,0.00021643,2]
[364497255,1749121843852,-451.02,0.00021643,2]
[364497257,1749121843861,-440.0,0.00021643,2]
[364497259,1749121843871,-702.57,0.00021643,2]
[364497261,1749121843881,-210.25,0.00021643,2]
[364497263,1749121843890,-958.15,0.00021643,2]
[364497265,1749121843899,-503.2118004,0.00021644,2]
[364497267,1749121843909,-500.27058007,0.00021687,2]
[364497269,1749121843918,-503.13665459,0.00021687,2]
[364497271,1749121843927,-152.590274,0.00021687,2]
[364497273,1749121843936,-500.0,0.00021687,2]
[364497275,1749121843946,-502.7778796,0.00021687,2]
[364497277,1749121843955,-163.5396541,0.00021687,2]
[364497279,1749121843964,-328.55184798,0.00021687,2]
[364497281,1749121843973,-500.0,0.00021687,2]
[364497283,1749121843983,-500.0,0.00021687,2]
[364497285,1749121843992,-500.92514887,0.00021687,2]
[364497287,1749121844001,-503.80741175,0.00021687,2]
[364497289,1749121844010,-500.0,0.00021687,2]
[364497291,1749121844019,-505.73318035,0.00021687,2]
[364497293,1749121844028,-500.0,0.00021687,2]
[364497295,1749121844038,-6221.47,0.00021729,2]
[364497297,1749121844048,-622.38,0.0002175,2]
[364497299,1749121844057,-622.38,0.0002175,2]
[364497301,1749121844066,-622.38,0.0002175,2]
[364497303,1749121844075,-622.38,0.0002175,2]
[364497305,1749121844084,-622.56,0.0002175,2]
[364497307,1749121844094,-709.0,0.0002175,2]
[364497309,1749121844103,-2225.0,0.0002175,2]
[364497311,1749121844112,-904.08757754,0.00021762,5]
[364497313,1749121844122,-500.0,0.00021858,2]
[364497315,1749121844131,-500.98536793,0.00021869,2]
[364497317,1749121844140,-19998.07,0.000219,2]
[364497319,1749121844149,-500.0,0.00021917,2]
[364497321,1749121844158,-742.02,0.00021917,2]
[364497323,1749121844167,-899.61,0.00021917,2]
[364497325,1749121844176,-1090.81,0.00021917,2]
[364497327,1749121844185,-554.81,0.00021917,2]
[364497329,1749121844194,-440.0,0.00021917,2]
[364497331,1749121844203,-1310.76,0.00021917,2]
[364497333,1749121844213,-509.45516575,0.00021917,2]
[364497335,1749121844222,-477.89,0.00021917,2]
[364497337,1749121844231,-440.0,0.00021917,2]
[364497339,1749121844240,-354.2,0.00021917,2]
[364497341,1749121844250,-1311.45,0.00021917,2]
[364497343,1749121844259,-1197.64,0.00021917,2]
[364497345,1749121844269,-492.74,0.00021917,2]
[364497347,1749121844278,-440.0,0.00021917,2]
[364497349,1749121844287,-516.22,0.00021917,2]
[364497351,1749121844297,-151.0,0.00021917,2]
[364497353,1749121844306,-453.27,0.00021917,2]
[364497355,1749121844316,-912.33,0.00021917,2]
[364497357,1749121844326,-451.02,0.00021917,2]
[364497359,1749121844336,-440.0,0.00021917,2]
[364497361,1749121844345,-702.57,0.00021917,2]
[364497363,1749121844356,-958.15,0.00021917,2]
[364497365,1749121844365,-3517.65,0.00022,7]
[364497367,1749121844374,-2159.98,0.00022,7]
[364497369,1749121844384,-151.0,0.00022,7]
[364497371,1749121844394,-152.084027,0.00022,7]
[364497373,1749121844403,-151.0,0.00022,7]
[364497375,1749121844413,-151.0,0.00022,7]
[364497376,1749121844422,-234.0,0.00022,2]
[364497378,1749121844431,-904.08757754,0.00022003,6]
[364497380,1749121844441,-500.0,0.00022025,2]
[364497382,1749121844450,-507.57968082,0.00022025,2]
[364497384,1749121844460,-511.72404302,0.00022075,2]
[364497386,1749121844469,-1000.0,0.00022075,2]
[364497388,1749121844480,-766.74294548,0.00022075,2]
[364497390,1749121844489,-159.89887137,0.00022137,2]
[364497392,1749121844498,-500.0,0.00022173,2]
[364497394,1749121844508,-500.0,0.00022173,2]
[364497396,1749121844518,-742.02,0.00022191,2]
[364497398,1749121844527,-899.61,0.00022191,2]
[364497400,1749121844537,-1090.81,0.00022191,2]
[364497402,1749121844546,-554.81,0.00022191,2]
[364497404,1749121844556,-440.0,0.00022191,2]
[364497406,1749121844566,-1310.76,0.00022191,2]
[364497408,1749121844576,-477.89,0.00022191,2]
[364497410,1749121844586,-440.0,0.00022191,2]
[364497412,1749121844596,-1311.45,0.00022191,2]
[364497414,1749121844605,-1197.64,0.00022191,2]
[364497416,1749121844615,-492.74,0.00022191,2]
[364497418,1749121844624,-516.22,0.00022191,2]
[364497420,1749121844634,-440.0,0.00022191,2]
[364497422,1749121844643,-453.27,0.00022191,2]